fUST/lending_fUST_20250804
["ID","MTS","AMOUNT","RATE_DAILY","PERIOD"]
[377110825,1754255443442,-500.0,0.00043628,10]
[377110826,1754255443451,-1000.0,0.00043685,10]
[377110827,1754255443460,-553.01407841,0.00043817,10]
[377110828,1754255443470,-630.62758701,0.00043817,10]
[377110829,1754255443479,-500.0,0.00043817,10]
[377110830,1754255443489,-500.0,0.00043817,10]
[377110831,1754255443499,-500.0,0.00043817,2]
[377110832,1754255443509,-502.37384086,0.00043817,10]
[377110833,1754255443518,-500.0,0.00043817,10]
[377110834,1754255443528,-500.0,0.00043817,10]
[377110835,1754255443537,-500.0,0.00043817,10]
[377110836,1754255443546,-500.0,0.00043817,10]
[377110837,1754255443556,-500.0,0.00043817,10]
[377110838,1754255443566,-500.0,0.00043817,10]
[377110839,1754255443575,-500.0,0.00043817,10]
[377110840,1754255443584,-500.45459786,0.00043817,10]
[377110841,1754255443594,-151.0,0.00043833,30]
[377110842,1754255443603,-400.0,0.00043836,120]
[377110843,1754255443613,-2375.92,0.00044,7]
[377110844,1754255443622,-2000.0,0.00044016,10]
[377110845,1754255443632,-450.0,0.00044016,10]
[377110846,1754255443642,-501.38135654,0.00044016,10]
[377110847,1754255443651,-2000.0,0.00044016,10]
[377110848,1754255443661,-756.84068139,0.00044016,10]
[377110849,1754255443670,-10923.61,0.00044023,120]
[377110850,1754255443680,-198.0,0.00044107,30]
[377110851,1754255443692,-200.845239,0.00044154,2]
[377110852,1754255443703,-158.66521,0.00044154,2]
[377110853,1754255443713,-1000.0,0.00044176,2]
[377110854,1754255443724,-505.1397854,0.00044233,10]
[377110855,1754255443734,-294.97,0.00044242,14]
[377110856,1754255443743,-1000.0,0.00044365,10]
[377110857,1754255443753,-1000.0,0.00044365,10]
[377110858,1754255443763,-500.0,0.00044365,10]
[377110859,1754255443772,-502.50247681,0.00044365,10]
[377110860,1754255443782,-500.0,0.00044365,10]
[377110861,1754255443796,-1000.0,0.00044365,10]
[377110862,1754255443806,-1000.0,0.00044365,10]
[377110863,1754255443816,-2624.9573001,0.00044564,61]
[377110864,1754255443826,-2500.0,0.00044564,10]
[377110865,1754255443836,-550.0,0.00044564,10]
[377110866,1754255443845,-500.0,0.00044564,10]
[377110867,1754255443856,-45759.65852457,0.000446,14]
[377110868,1754255444035,-1806.18641804,0.000446,14]
[377110869,1754255446102,-422.748628,0.000446,14]
[377110870,1754255447062,-7508.89642939,0.000446,14]
[377110871,1754255447072,-10923.61,0.00044708,120]
[377110872,1754255447081,-1500.0,0.00044724,2]
[377110873,1754255447090,-151.0,0.00044816,120]
[377110874,1754255447099,-194.31634394,0.00044913,10]
[377110875,1754255447109,-1015.95931533,0.00044913,10]
[377110876,1754255447118,-1500.0,0.00044913,10]
[377110877,1754255447127,-1500.0,0.00044913,10]
[377110878,1754255447136,-151.0,0.00044916,120]
[377110879,1754255447145,-151.0,0.00044916,120]
[377110880,1754255447154,-177.789207,0.0004493,120]
[377110881,1754255447163,-165.36659899,0.00044959,120]
[377110882,1754255447172,-1000.0,0.00045,120]
[377110883,1754255447182,-3000.0,0.00045112,10]
[377110884,1754255447191,-650.0,0.00045112,10]
[377110885,1754255447200,-541.93947362,0.00045272,2]
[377110886,1754255447210,-10923.61,0.00045393,120]
[377110887,1754255447220,-152.0,0.000454,120]
[377110888,1754255447230,-2000.0,0.00045461,10]
[377110889,1754255447239,-165.36659899,0.00045562,120]
[377110890,1754255447249,-151.0,0.00045648,120]
[377110891,1754255447261,-151.0,0.00045648,120]
[377110892,1754255447275,-151.0,0.00045648,120]
[377110893,1754255447284,-187.722809,0.00045648,120]
[377110894,1754255447294,-1161.52183918,0.0004566,10]
[377110895,1754255447303,-296.47399686,0.0004566,10]
[377110896,1754255447313,-151.0,0.00045752,120]
[377110897,1754255447321,-151.0,0.00045752,120]
[377110898,1754255447331,-200.0,0.00045908,60]
[377110899,1754255447341,-200.0,0.00045908,60]
[377110900,1754255447350,-200.0,0.00045908,60]
[377110901,1754255447360,-200.0,0.00045908,60]
[377110902,1754255447369,-200.0,0.00045908,60]
[377110903,1754255447379,-200.0,0.00045908,60]
[377110904,1754255447388,-200.0,0.00045908,60]
[377110905,1754255447398,-246.0,0.00045908,60]
[377110906,1754255447407,-860.55,0.00046,7]
[377110907,1754255447418,-1000.0,0.00046,120]
[377110908,1754255447433,-150.0,0.00046,120]
[377110909,1754255447442,-1919.70348114,0.00046008,10]
[377110910,1754255447451,-10923.61,0.00046078,120]
[377110911,1754255447460,-2375.92,0.000461,7]
[377110912,1754255447469,-265.71801667,0.00046155,120]
[377110913,1754255447479,-165.36659899,0.00046164,120]
[377110914,1754255447488,-265.71801667,0.00046169,120]
[377110915,1754255447498,-265.71801667,0.00046219,120]
[377110916,1754255447517,-265.71801667,0.00046295,120]
[377110917,1754255447526,-400.0,0.00046575,120]
[377110918,1754255447535,-10923.61,0.00046763,120]
[377110919,1754255447544,-165.36659899,0.00046767,120]
[377110920,1754255447553,-1000.0,0.00047,120]
[377110921,1754255447562,-150.0,0.000471,3]
[377110922,1754255447572,-55497.49,0.000471,14]
[377110923,1754255447581,-10923.61,0.00047447,120]
[377110924,1754255447590,-151.0,0.000478,120]
[377110925,1754255447600,-214.814703,0.000478,120]
[377110926,1754255447609,-151.0,0.000478,120]
[377110927,1754255447619,-408.55350176,0.00047808,120]
[377110928,1754255447629,-151.876247,0.0004786,7]
[377110929,1754255447639,-1240.37246769,0.00048038,57]
[377110930,1754255447648,-151.0,0.00048087,10]
[377110931,1754255447657,-151.0,0.00048087,10]
[377110932,1754255447668,-151.0,0.00048087,10]
[377110933,1754255447678,-151.0,0.00048087,10]
[377110934,1754255447689,-151.0,0.00048087,10]
[377110935,1754255447698,-151.0,0.00048087,10]
[377110936,1754255447709,-151.0,0.00048087,10]
[377110937,1754255447720,-151.0,0.00048087,10]
[377110938,1754255447731,-151.0,0.00048087,10]
[377110939,1754255447740,-151.0,0.00048087,10]
[377110940,1754255447750,-151.0,0.00048087,10]
[377110941,1754255447760,-151.0,0.00048087,10]
[377110942,1754255447769,-151.0,0.00048087,10]
[377110943,1754255447780,-10923.61,0.00048132,120]
[377110944,1754255447789,-294.97,0.00048148,14]
[377110945,1754255447799,-200.0,0.00048193,120]
[377110946,1754255447809,-151.0,0.00048207,120]
[377110947,1754255447820,-151.0,0.00048281,120]
[377110948,1754255447830,-151.0,0.00048281,120]
[377110949,1754255447839,-200.0,0.00048287,120]
[377110950,1754255447849,-521.22,0.000483,14]
[377110951,1754255447861,-2999.17,0.000483,14]
[377110952,1754255447872,-6060.59,0.00048568,14]
[377110953,1754255447883,-2375.92,0.000486,7]
[377110954,1754255447967,-500.0,0.00048778,10]
[377110955,1754255447977,-10923.61,0.00048817,120]
[377110956,1754255447986,-1000.0,0.00048999,120]
[377110957,1754255447996,-2000.0,0.00049,120]
[377110958,1754255448006,-308.944631,0.00049,15]
[377110959,1754255448015,-152.0,0.00049,120]
[377110960,1754255448025,-151.876247,0.0004906,2]
[377110961,1754255448034,-1802.28983057,0.00049174,8]
[377110962,1754255448044,-200.0,0.0004927,120]
[377110963,1754255448054,-428.4418273,0.00049315,120]
[377110964,1754255448063,-55497.49,0.000494,14]
[377110965,1754255448073,-17380.74,0.00049498,14]
[377110966,1754255448083,-10923.61,0.00049502,120]
[377110967,1754255448092,-151.0,0.0004982,120]
[377110968,1754255448102,-151.0,0.00049861,120]
[377110969,1754255448111,-151.0,0.00049861,120]
[377110970,1754255448121,-1003.10768806,0.00049874,10]
[377110971,1754255448131,-150.0,0.00049973,7]
[377110972,1754255448140,-500.0,0.00049973,10]
[377110973,1754255448150,-1000.0,0.00049999,120]
[377110974,1754255448160,-3000.0,0.0005,120]
[377110975,1754255448170,-450.0,0.0005,120]
[377110976,1754255448180,-226.81938561,0.0005,120]
[377110977,1754255448189,-100000.00001138,0.0005,30]
[377110978,1754255448198,-151.0,0.0005,120]
[377110979,1754255448208,-10923.61,0.00050187,120]
[377110980,1754255448217,-200.0,0.00050265,90]
[377110981,1754255448227,-200.0,0.00050265,90]
[377110982,1754255448236,-200.0,0.00050265,90]
[377110983,1754255448246,-200.0,0.00050265,90]
[377110984,1754255448255,-200.0,0.00050265,90]
[377110985,1754255448265,-200.0,0.00050265,90]
[377110986,1754255448274,-200.0,0.00050265,90]
[377110987,1754255448283,-200.0,0.00050265,90]
[377110988,1754255448293,-200.0,0.00050265,90]
[377110989,1754255448302,-200.0,0.00050265,90]
[377110990,1754255448312,-304.0,0.00050265,90]
[377110991,1754255448321,-300.0,0.00050521,7]
[377110992,1754255448330,-1000.0,0.00050521,10]
[377110993,1754255448339,-300.0,0.00050683,7]
[377110994,1754255448349,-10923.61,0.00050872,120]
[377110995,1754255448359,-500.0,0.00050959,60]
[377110996,1754255448369,-1000.0,0.00050999,120]
[377110997,1754255448379,-3000.0,0.00051,120]
[377110998,1754255448389,-450.0,0.00051068,7]
[377110999,1754255448398,-774.88030331,0.00051068,10]
[377111000,1754255448408,-2375.92,0.000511,7]
[377111001,1754255448418,-260.746367,0.000512,120]
[377111002,1754255448427,-521.22,0.000512,14]
[377111003,1754255448437,-608.0089912,0.00051341,2]
[377111004,1754255448446,-151.0,0.00051505,120]
[377111005,1754255448455,-169.708372,0.00051505,120]
[377111006,1754255448464,-10923.61,0.00051557,120]
[377111007,1754255448474,-300.0,0.00051599,118]
[377111008,1754255448483,-151.0,0.00051599,118]
[377111009,1754255448492,-250.0,0.00051599,118]
[377111010,1754255448502,-2999.17,0.000516,14]
[377111011,1754255448512,-600.0,0.00051616,7]
[377111012,1754255448521,-10039.874081,0.000519,120]
[377111013,1754255448531,-1000.0,0.00051999,120]
[377111014,1754255448540,-3000.0,0.00052,120]
[377111015,1754255448549,-500.0,0.00052055,60]
[377111016,1754255448559,-55497.49,0.000521,14]
[377111017,1754255448569,-750.0,0.00052164,7]
[377111018,1754255448578,-151.0,0.00052223,120]
[377111019,1754255448588,-10923.61,0.00052242,120]
[377111020,1754255448598,-160.0,0.00052298,3]
[377111021,1754255448608,-160.0,0.00052298,5]
[377111022,1754255448618,-300.0,0.00052337,90]
[377111023,1754255448627,-151.0,0.00052337,90]
[377111024,1754255448637,-250.0,0.00052337,90]
[377111025,1754255448647,-196.65,0.00052383,14]
[377111026,1754255448656,-2000.0,0.000525,120]
[377111027,1754255448666,-152.0,0.000526,120]
[377111028,1754255448676,-196.65,0.00052712,14]
[377111029,1754255448685,-781.58831866,0.00052712,7]
[377111030,1754255448695,-2375.92,0.000528,7]
[377111031,1754255448705,-800.0,0.00052907,30]
[377111032,1754255448715,-10923.61,0.00052927,120]
[377111033,1754255448725,-150.0,0.00053,120]
[377111034,1754255448735,-3000.0,0.00053,120]
[377111035,1754255448745,-196.65,0.0005304,14]
[377111036,1754255448756,-800.0,0.00053095,30]
[377111037,1754255448765,-300.0,0.0005315,60]
[377111038,1754255448775,-151.0,0.0005315,60]
[377111039,1754255448784,-250.0,0.0005315,60]
[377111040,1754255448794,-159.4497964,0.00053151,30]
[377111041,1754255448805,-153.0,0.00053151,30]
[377111042,1754255448814,-400.4703276,0.00053151,30]
[377111043,1754255448824,-246.0895008,0.00053151,30]
[377111044,1754255448834,-426.496133,0.00053151,30]
[377111045,1754255448843,-153.0,0.00053151,30]
[377111046,1754255448853,-153.0,0.00053151,30]
[377111047,1754255448863,-153.0,0.00053151,30]
[377111048,1754255448872,-153.0,0.00053151,30]
[377111049,1754255448883,-153.0,0.00053151,30]
[377111050,1754255448894,-500.0,0.00053151,60]
[377111051,1754255448903,-200.0,0.00053162,120]
[377111052,1754255448913,-800.0,0.00053182,30]
[377111053,1754255448922,-800.0,0.0005323,30]
[377111054,1754255448932,-300.0,0.00053299,120]
[377111055,1754255448942,-151.0,0.00053299,120]
[377111056,1754255448952,-250.0,0.00053299,120]
[377111057,1754255448962,-2729.85338012,0.000533,120]
[377111058,1754255448971,-157.06113176,0.00053368,30]
[377111059,1754255448981,-2054.302754,0.00053389,30]
[377111060,1754255448993,-300.0,0.00053389,30]
[377111061,1754255449003,-151.0,0.00053389,30]
[377111062,1754255449012,-250.0,0.00053389,30]
[377111063,1754255449022,-206.0,0.0005339,30]
[377111064,1754255449032,-151.0,0.000534,120]
[377111065,1754255449041,-521.22,0.000534,14]
[377111066,1754255449051,-150.232838,0.000534,2]
[377111067,1754255449060,-1000.0,0.00053479,120]
[377111068,1754255449070,-500.0,0.0005348,60]
[377111069,1754255449080,-9608.69823762,0.000536,2]
[377111070,1754255449090,-10923.61,0.00053612,120]
[377111071,1754255449174,-151.0,0.0005369,120]
[377111072,1754255449184,-151.0,0.0005369,120]
[377111073,1754255449194,-151.0,0.00053699,120]
[377111074,1754255449204,-151.0,0.00053699,120]
[377111075,1754255449213,-151.0,0.00053699,120]
[377111076,1754255449223,-151.0,0.00053699,120]
[377111077,1754255449232,-151.0,0.00053699,120]
[377111078,1754255449241,-151.0,0.00053699,120]
[377111079,1754255449251,-151.0,0.00053699,120]
[377111080,1754255449260,-197969.44499477,0.00053699,120]
[377111081,1754255449269,-2999.17,0.000537,14]
[377111082,1754255449278,-55497.49,0.000537,14]
[377111083,1754255449288,-504.9932045,0.0005379,60]
[377111084,1754255449297,-200.0,0.00053791,120]
[377111085,1754255449307,-151.0,0.000538,23]
[377111086,1754255449316,-200.0,0.0005389,120]
[377111087,1754255449326,-680.15055466,0.00054,120]
[377111088,1754255449335,-1000.0,0.00054,120]
[377111089,1754255449344,-1000.0,0.00054,120]
[377111090,1754255449353,-300.0,0.00054,120]
[377111091,1754255449363,-21503.78468346,0.00054,120]
[377111092,1754255449372,-3000.0,0.00054,120]
[377111093,1754255449381,-500.0,0.00054,60]
[377111094,1754255449391,-151.0,0.00054,120]
[377111095,1754255449400,-460.95174316,0.00054134,2]
[377111096,1754255449409,-160.0,0.00054134,2]
[377111097,1754255449418,-10923.61,0.00054297,120]
[377111098,1754255449427,-185.84935718,0.0005434,120]
[377111099,1754255449437,-200.0,0.00054348,120]
[377111100,1754255449446,-200.0,0.00054438,60]
[377111101,1754255449455,-151.0,0.00054439,120]
[377111102,1754255449465,-200.0,0.00054439,60]
[377111103,1754255449474,-151.0,0.00054439,120]
[377111104,1754255449483,-1000.0,0.00054439,120]
[377111105,1754255449493,-1000.0,0.00054439,60]
[377111106,1754255449503,-1500.0,0.00054439,60]
[377111107,1754255449512,-408754.57188937,0.0005444,30]
[377111109,1754255768519,312.16666667,0.00028,3]
[377111110,1754255863165,5000.0,0.0003,2]
[377111118,1754255967413,4668.04101216,0.0003,2]
[377111122,1754256195705,161.953266,0.00013699,2]
[377111142,1754256392139,-184.12561478,0.00030037,2]
[377111170,1754256523426,4573.16815989,0.000266,2]
[377111171,1754256526106,2862.00984713,0.00019,2]
[377111175,1754256558255,150.0,0.000279,2]
[377111212,1754256632194,-18.64458166,0.00030037,2]
[377111213,1754256632204,-150.0,0.000329,2]
[377111214,1754256632214,-3877.73944236,0.00034978,2]
[377111215,1754256632228,-3610.91933916,0.00034978,2]
[377111216,1754256632238,-184.18210763,0.00035306,14]
[377111218,1754256632247,-686.99736407,0.000359,33]
[377111220,1754256632259,-506.77966788,0.000359,33]
[377111222,1754256632269,-153.0,0.00038253,30]
[377111224,1754256632278,-200.0,0.00038475,30]
[377111226,1754256632290,-160.89281522,0.00038475,30]
[377111229,1754256632310,-39.10718478,0.00038475,30]
[377111232,1754256632320,-200.0,0.00038475,30]
[377111234,1754256632330,-172.11,0.00039,2]
[377111236,1754256632341,-856.14421806,0.00039928,2]
[377111238,1754256632352,-1180.32132044,0.00039928,2]
[377111240,1754256632362,-10000.388578,0.0004,90]
[377111242,1754256632372,-500.0,0.00041979,120]
[377111253,1754256632381,-150.0,0.00041989,2]
[377111256,1754256632486,-200.0,0.00042099,30]
[377111258,1754256632496,-200.0,0.00042099,30]
[377111260,1754256632505,-200.0,0.00042099,30]
[377111262,1754256632514,-240.0,0.00042099,30]
[377111264,1754256632524,-151.0,0.00042351,120]
[377111266,1754256632533,-151.0,0.00042361,120]
[377111268,1754256632543,-151.0,0.00042361,118]
[377111269,1754256632552,-151.0,0.00042361,120]
[377111270,1754256632562,-1642.78835528,0.00043238,28]
[377111278,1754256638132,-385.50568669,0.00043238,28]
[377111279,1754256638142,-1094.59170874,0.00043294,2]
[377111280,1754256638153,-658.2987274,0.00043294,2]
[377111281,1754256638165,-572.81103102,0.00043294,2]
[377111282,1754256638176,-1465.79542627,0.00043294,2]
[377111283,1754256638192,-1050.55430344,0.00043294,2]
[377111284,1754256638204,-362.32313493,0.00043294,2]
[377111286,1754256638213,-151.0,0.00043338,118]
[377111287,1754256638223,-151.0,0.00043468,120]
[377111288,1754256638232,-600.54396759,0.00044,120]
[377111290,1754256638242,-6238.0856056,0.00044208,120]
[377111292,1754256638251,-161.953266,0.00044521,2]
[377111294,1754256638261,-250.200798,0.00044595,2]
[377111296,1754256638270,-151.0,0.00044708,118]
[377111298,1754256638279,-1000.0,0.00045,120]
[377111300,1754256638288,-860.17791295,0.00045,20]
[377111301,1754256638299,-151.0,0.00045112,120]
[377111303,1754256638309,-214.176,0.00045112,73]
[377111306,1754256638318,-187.066143,0.00045617,2]
[377111317,1754256638417,-1000.0,0.00046,120]
[377111320,1754256638427,-200.0,0.00046064,60]
[377111322,1754256638436,-156.72436358,0.00046064,60]
[377111325,1754256638456,-43.27563642,0.00046064,60]
[377111327,1754256638465,-200.0,0.00046064,60]
[377111329,1754256638474,-200.0,0.00046064,60]
[377111331,1754256638484,-375.0,0.00046064,60]
[377111333,1754256638493,-516.33,0.000464,7]
[377111335,1754256638503,-1000.0,0.00047,120]
[377111337,1754256638512,-160.0,0.00047043,2]
[377111339,1754256638522,-160.0,0.00047051,2]
[377111341,1754256638532,-151.0,0.00047447,118]
[377111343,1754256638541,-165.76805551,0.00048,120]
[377111345,1754256638553,-834.23194449,0.00048,120]
[377111347,1754256638563,-284.93265,0.00048132,120]
[377111349,1754256638573,-1000.0,0.00049,120]
[377111351,1754256638583,-151.0,0.0005,118]
[377111353,1754256638595,-1000.0,0.0005,120]
[377111355,1754256638604,-177.69067793,0.0005,120]
[377111357,1754256638614,-217.57251356,0.0005,20]
[377111359,1754256638625,-192.43385373,0.0005,120]
[377111361,1754256638634,-527.87800004,0.0005,10]
[377111363,1754256638644,-539.42602765,0.0005,120]
[377111365,1754256638655,-209.39738109,0.0005,30]
[377111367,1754256638666,-203.95612532,0.0005,120]
[377111369,1754256638679,-199.0,0.0005,7]
[377111372,1754256638688,-320.0,0.00050209,7]
[377111374,1754256638698,-200.0,0.00050403,90]
[377111376,1754256638707,-200.0,0.00050403,90]
[377111377,1754256638716,-200.0,0.00050403,90]
[377111380,1754256638725,-200.0,0.00050403,90]
[377111382,1754256638736,-200.0,0.00050403,90]
[377111384,1754256638745,-200.0,0.00050403,90]
[377111386,1754256638755,-200.0,0.00050403,90]
[377111388,1754256638764,-246.0,0.00050403,90]
[377111390,1754256638773,-1000.0,0.00051,120]
[377111392,1754256638782,-1193.77703166,0.000519,65]
[377111394,1754256638792,-204.27675088,0.00051968,120]
[377111396,1754256638802,-2000.0,0.00052,120]
[377111398,1754256638811,-1000.0,0.00052,120]
[377111400,1754256638820,-151.0,0.000521,118]
[377111402,1754256638829,-500.0,0.00052499,2]
[377111404,1754256638838,-587.20311197,0.00052499,120]
[377111406,1754256638847,-614.64666002,0.00052499,2]
[377111408,1754256638858,-2917.12305764,0.000525,120]
[377111410,1754256638870,-460.0,0.000525,120]
[377111412,1754256638882,-6622.86699236,0.000525,120]
[377111414,1754256638891,-1000.0,0.00053,120]
[377111416,1754256638900,-151.0,0.00053099,120]
[377111418,1754256638910,-151.0,0.00053099,120]
[377111420,1754256638920,-198.0,0.00053099,120]
[377111422,1754256638929,-151.0,0.00053099,120]
[377111424,1754256638939,-2000.0,0.000532,120]
[377111426,1754256638948,-17999.9901,0.000532,120]
[377111428,1754256638958,-10000.0,0.000532,120]
[377111430,1754256638967,-151.0,0.00053373,120]
[377111432,1754256638976,-151.0,0.00053373,120]
[377111434,1754256638986,-153.53438336,0.00053373,120]
[377111436,1754256638995,-151.0,0.00053647,120]
[377111438,1754256639005,-151.0,0.00053647,120]
[377111440,1754256639014,-850.22524171,0.000539,120]
[377111442,1754256639023,-198.0,0.00053921,120]
[377111444,1754256639034,-198.0,0.00053921,120]
[377111446,1754256639044,-1000.0,0.00054,120]
[377111448,1754256639054,-151.0,0.00054307,2]
[377111451,1754256639063,-151.0,0.00054307,2]
[377111453,1754256639073,-7153.96335514,0.0005432,4]
[377111564,1754256640168,-1010.99712868,0.0005432,4]
[377111566,1754256640180,-320.57467597,0.0005432,4]
[377111881,1754256643188,-1156.54014759,0.0005432,4]
[377112177,1754256646233,-7728.758506,0.0005432,4]
[377112191,1754256646331,-9776.55067132,0.0005432,4]
[377112194,1754256646342,-479.77782668,0.00054329,120]
[377112196,1754256646351,-10585.67062377,0.00054329,120]
[377112198,1754256646362,-352.156064,0.00054329,120]
[377131803,1754257080800,161.058151,0.00013699,2]
[377131808,1754257385872,492.08,0.00030137,120]
[377131809,1754257440825,1206.13274528,0.0003,2]
[377131811,1754257478269,157.0,0.00024,120]
[377131812,1754257479600,157.0,0.00029,120]
[377131813,1754257531357,200.0,0.00029366,120]
[377131816,1754257594150,-157.0,0.00034,120]
[377131817,1754257594172,-26.52577671,0.00038693,2]
[377131871,1754257832315,-160.0,0.00038672,2]
[377131873,1754257832325,-231.62108626,0.00038683,2]
[377131890,1754257832441,-1169.15782609,0.000389,39]
[377131892,1754257832451,-157.0,0.00039,120]
[377131894,1754257832461,-150.0,0.000391,2]
[377131896,1754257832470,-1169.15782597,0.00039555,40]
[377131898,1754257832479,-3361.06020505,0.00040201,2]
[377131957,1754257838285,-1594.99708045,0.00040201,2]
[377131959,1754257838294,-1169.15782597,0.0004021,42]
[377131961,1754257838304,-1169.15782597,0.00040866,43]
[377131963,1754257838314,-375.301197,0.00041262,2]
[377131965,1754257838323,-1169.15782597,0.00041521,44]
[377131967,1754257838333,-1169.15782597,0.00042176,46]
[377131969,1754257838342,-7356.15328204,0.00042176,2]
[377131970,1754257838351,-1169.15782597,0.00042831,47]
[377131972,1754257838361,-165.71790045,0.00043486,48]
[377131984,1754257838453,-1003.43992552,0.00043486,48]
[377131987,1754257838469,-157.0,0.00044,120]
[377131989,1754257838484,-1169.15782597,0.00044141,49]
[377131991,1754257838494,-1169.15782597,0.00044797,51]
[377131993,1754257838504,-200.0,0.00044951,30]
[377131995,1754257838514,-200.0,0.00044951,30]
[377131997,1754257838523,-200.0,0.00044951,30]
[377131999,1754257838533,-200.0,0.00044951,30]
[377132014,1754257838684,-1169.15782597,0.00045452,52]
[377132016,1754257838695,-1169.15782597,0.00046107,53]
[377132018,1754257838705,-1169.15782597,0.00046762,55]
[377132020,1754257838714,-1169.15782597,0.00047417,56]
[377132022,1754257838724,-393.66,0.000475,7]
[377132024,1754257838733,-1169.15782597,0.00048072,57]
[377132026,1754257838743,-1946.64609316,0.00048628,28]
[377132028,1754257838752,-1169.15782597,0.00048728,58]
[377132029,1754257838761,-151.876247,0.0004896,2]
[377132031,1754257838770,-157.0,0.00049,120]
[377132033,1754257838779,-200.0,0.00049125,60]
[377132035,1754257838789,-200.0,0.00049125,60]
[377132037,1754257838798,-200.0,0.00049125,60]
[377132039,1754257838808,-200.0,0.00049125,60]
[377132041,1754257838817,-320.0,0.00049125,60]
[377132043,1754257838827,-151.876247,0.00049316,30]
[377132045,1754257838837,-1169.15782597,0.00049383,60]
[377132047,1754257838845,-1946.6460931,0.00049857,28]
[377132048,1754257838855,-1000.0,0.0005,120]
[377132050,1754257838864,-1169.15782597,0.00050038,61]
[377132052,1754257838873,-1000.0,0.000505,120]
[377132054,1754257838883,-1169.15782597,0.00050693,62]
[377132056,1754257838892,-1000.0,0.00051,120]
[377132058,1754257838901,-1946.6460931,0.00051086,28]
[377132060,1754257838911,-1169.15782597,0.00051348,64]
[377132061,1754257838920,-1000.0,0.000515,120]
[377132063,1754257838929,-3984.42939068,0.00052,120]
[377132065,1754257838941,-7910.83097832,0.00052,120]
[377132067,1754257838954,-302.0,0.00052,120]
[377132070,1754257838965,-322.24925186,0.00052,120]
[377132072,1754257838977,-3393.27706792,0.00052,120]
[377132074,1754257838988,-87.20331222,0.00052,120]
[377132076,1754257838997,-836.22841569,0.00052,120]
[377132078,1754257839008,-163.77158431,0.00052,120]
[377132080,1754257839018,-1169.15782597,0.00052003,65]
[377132082,1754257839027,-204.27675089,0.00052134,120]
[377132084,1754257839037,-1946.6460931,0.00052315,28]
[377132086,1754257839046,-13364.06259073,0.0005249,4]
[377133002,1754257846512,-12425.95266977,0.0005249,4]
[377133004,1754257846523,-12733.16,0.00052498,120]
[377133006,1754257846533,-2000.0,0.000525,120]
[377133008,1754257846543,-2000.0,0.000525,120]
[377133011,1754257846553,-13904.23483671,0.000525,120]
[377135046,1754258000716,160.386815,0.00013699,2]
[377135049,1754258177536,151.0,0.00024,120]
[377135050,1754258301802,5000.0,0.0003,2]
[377135051,1754258397699,349.695963,0.00025778,2]
[377135052,1754258398067,235.47623407,0.00026044,2]
[377135053,1754258418507,151.0,0.00024,120]
[377135054,1754258699369,419.111759,0.00025778,2]
[377135055,1754258699708,282.21903813,0.00026044,2]
[377135056,1754258819186,-151.0,0.000303,120]
[377135057,1754258819207,-32.60803885,0.00036339,2]
[377135060,1754258909837,161.183342,0.00013699,2]
[377135063,1754259000899,191.331991,0.00025778,2]
[377135064,1754259001221,188.67302312,0.00026044,2]